Cogmind - Beta 14 @@@ ROGUE MODE // 2024.11.09 @ 11:52:58 Player: Darsidian Result: Destroyed by DAS Turret with DAS Cannon Performance ------------- Evolutions (1) 500 Regions Visited (4) 800 Robots Destroyed (23) 115 Value Destroyed (441) 441 Prototype IDs (23) 460 Alien Tech Used (0) 0 Bonus (229) 229 TOTAL SCORE: 2545 Bonus ------- Aligned with FarCom 300 Friendly Fire -71 Cogmind --------- Core Integrity 0/400 Matter 300/300 Energy 98/100 System Corruption 0% Temperature Cool (0) Movement Core (50) Location -9/Exiles Parts ------- > --- POWER (1) -------- (None) > --- PROPULSION (2) --- (None) > --- UTILITY (4) ------ Structural Scanner Signal Interpreter > --- WEAPON (2) ------- (None) > --- INVENTORY (5) ---- Superbattery (916) Improved Terrain Scanner PSU Rigger Plasma Cutter Heavy Hammer Peak State ------------ > --- POWER ------------ Light Ion Engine > --- PROPULSION ------- Hover Unit Hover Unit > --- UTILITY ---------- Small Storage Unit Structural Scanner Sensor Array Signal Interpreter > --- WEAPON ----------- Katana > --- INVENTORY -------- Light Ion Engine Compact Wheel Flight Unit Trap Scanner Propulsion Shielding Autogun Mining Laser Plasma Cutter [Rating: 11] Favorites ----------- Power Light Ion Engine Engine Light Ion Engine Propulsion Wheel Wheel Wheel Hover Unit Hover Unit Flight Unit Flight Unit Utility Small Storage Unit Device Structural Scanner Storage Small Storage Unit Processor Signal Interpreter Protection Propulsion Shielding Weapon Katana Energy Gun Small Laser Ballistic Gun Light Assault Rifle Special Weapon Mining Laser Impact Weapon Heavy Hammer Slashing Weapon Katana Build | -11 -10 -9 -9 -9 ------- Run | Yrd Mat Mat Min Exi Slots Evolved 2 | . . 2 . . Power . | . . . . . Propulsion . | . . . . . Utility 2 | . . 2 . . Weapon . | . . . . . Parts Attached 49 | 8 26 9 4 2 Power 9 | 2 6 1 . . Engine 9 | 2 6 1 . . Core . | . . . . . Reactor . | . . . . . Propulsion 11 | 2 4 2 2 1 Treads . | . . . . . Leg . | . . . . . Wheel 7 | 2 2 1 1 1 Hover 3 | . 2 1 . . Flight 1 | . . . 1 . Utility 14 | 2 7 3 1 1 Device 6 | 1 3 1 1 . Storage 5 | 1 3 . . 1 Processor 2 | . 1 1 . . Hackware . | . . . . . Protection 1 | . . 1 . . Artifact . | . . . . . Weapon 15 | 2 9 3 1 . Energy Gun 2 | 1 1 . . . Energy Cannon . | . . . . . Ballistic Gun 7 | 1 5 1 . . Ballistic Cannon . | . . . . . Launcher . | . . . . . Special Weapon 2 | . 2 . . . Impact Weapon 1 | . . 1 . . Slashing Weapon 3 | . 1 1 1 . Piercing Weapon . | . . . . . Special Melee Weapon . | . . . . . Unidentified Prototypes . | . . . . . Parts Lost 14 | . 3 6 . 5 Power 4 | . 2 2 . . Propulsion 6 | . . 3 . 3 Utility 3 | . 1 1 . 1 Weapon 1 | . . . . 1 Highest Loss Streak 5 | . 2 4 . 5 To Critical Strikes . | . . . . . Average Slot Usage (%) 87 | . 97 85 68 76 Engine 8 | . 12 10 . . Wheel 10 | . 16 . 7 10 Hover 10 | . 11 21 . . Flight 3 | . . . 10 10 Device 13 | . 8 18 18 14 Storage 10 | . 14 11 . 6 Processor 8 | . 4 11 11 11 Protection 3 | . . 1 11 10 Energy Gun 2 | . 6 . . . Ballistic Gun 7 | . 15 1 . . Special Weapon 2 | . 5 . . . Slashing Weapon 5 | . . 7 10 10 Peak Build Rating 11 | 7 8 11 11 11 Average Rating 8 | 5 7 9 9 10 On Entrance 6 | . 7 6 8 11 Naked Turns . | . . . . . Heaviest Build 17 | 13 17 13 10 9 Greatest Support 26 | 26 20 16 16 16 Greatest Overweight (x) 2 | . 1 2 1 2 Average Overweight (x) . | . . . . . Largest Inventory Capacity 10 | 8 10 8 8 8 Average Capacity 7 | 7 8 8 5 6 Most Carried 8 | 3 8 8 5 7 Average Carried 5 | 1 5 7 4 6 Final Capacity 8 | 8 8 8 5 5 Final Carried 8 | 3 8 5 5 5 Class Distribution -------------------- 59% | Scavenger-Mutant 27% | Mutant 12% | Scavenger-Scout Dominant Class ---------------- Scavenger-Mutant | -10/Materials Scavenger-Scout | -9/Materials Scavenger-Mutant | -9/Mines Scavenger-Mutant | -9/Exiles Resources | -11 -10 -9 -9 -9 ----------- Run | Yrd Mat Mat Min Exi Matter Collected 815 | 316 350 84 56 9 Remotely . | . . . . . Salvage Created 813 | 122 517 133 41 . Parts 47 | 7 24 12 4 . Haulers Intercepted . | . . . . . Recyclers Shooed 3 | 1 2 . . . Parts Field Recycled . | . . . . . Retrieved Matter . | . . . . . Parts Self-Destructed . | . . . . . Prevented . | . . . . . Kills | -11 -10 -9 -9 -9 ------- Run | Yrd Mat Mat Min Exi Combat Hostiles Destroyed 11 | . 9 2 . . Melee 1 | . . 1 . . Guns 10 | . 9 1 . . Classes Destroyed 9 | 2 3 4 . . Worker 1 | . . 1 . . Builder 1 | . . 1 . . Tunneler 4 | 2 . . 2 . Recycler 3 | 1 2 . . . Operator 1 | . . 1 . . Watcher 2 | . 2 . . . Swarmer 3 | . 3 . . . Grunt 7 | . 6 1 . . Duelist 1 | . . 1 . . Best Kill Streak 4 | 2 4 2 1 . Combat Bots Only 3 | . 3 1 . . Max Kills in Single Turn 1 | 1 1 1 1 . Gunslinging . | . . . . . Exploded . | . . . . . Melee 1 | . . 1 . . Uniques/NPCs Destroyed . | . . . . . Combat | -11 -10 -9 -9 -9 -------- Run | Yrd Mat Mat Min Exi Hostile Shots Fired 113 | . 45 54 . 14 Missed 46 | . 23 19 . 4 Damage Taken 1050 | . 240 441 . 369 Core 470 | . 62 177 . 231 Absorbed by Shields . | . . . . . Redirected to Shielding 56 | . . 24 . 32 Core Remaining (%) 87 | 100 75 . . . Volleys Fired 68 | 12 46 10 . . Largest 2 | 2 2 1 . . Hottest 100 | 60 100 23 . . Shots Fired 121 | 24 87 10 . . Gun 120 | 24 86 10 . . Cannon . | . . . . . Launcher . | . . . . . Special 1 | . 1 . . . Kinetic 89 | 12 67 10 . . Thermal 24 | 12 12 . . . Explosive . | . . . . . Electromagnetic 8 | . 8 . . . Robot Hit Streak 12 | 4 12 4 . . Robot Miss Streak 3 | 2 3 2 . . Penetration Max . | . . . . . Secondary Targets . | . . . . . Shots Hit Robots 94 | 15 58 17 3 1 Core Hits 36 | 4 26 5 1 . Critical Kills 1 | . . 1 . . Critical Parts Destroyed 1 | . 1 . . . Critical Strikes 2 | . 1 1 . . Destroy 1 | . 1 . . . Smash 1 | . . 1 . . Melee Attacks 25 | . . 21 3 1 Impact 7 | . . 7 . . Slashing 18 | . . 14 3 1 Piercing . | . . . . . Sneak Attacks 5 | . . 2 3 . Combat Hostiles . | . . . . . Follow-up Attacks . | . . . . . Damage Inflicted 1545 | 172 595 499 208 71 Guns 868 | 172 595 101 . . Cannons . | . . . . . Explosions . | . . . . . Melee 677 | . . 398 208 71 Ramming . | . . . . . Kinetic 599 | 71 427 101 . . Thermal 201 | 101 100 . . . Explosive . | . . . . . Electromagnetic 68 | . 68 . . . Impact 169 | . . 169 . . Slashing 508 | . . 229 208 71 Piercing . | . . . . . Highest Corruption . | . . . . . Average Corruption . | . . . . . Corruption Purged . | . . . . . Corruption Blocked . | . . . . . Overload Shots . | . . . . . Overflow Damage 194 | . . 97 86 11 Projectiles . | . . . . . Explosions . | . . . . . Melee 194 | . . 97 86 11 Knockbacks 1 | . . 1 . . Impact 1 | . . 1 . . Kinetic . | . . . . . Secondary . | . . . . . Self-Inflicted Damage . | . . . . . Shots . | . . . . . Rammed . | . . . . . Targets Rammed . | . . . . . Kicked . | . . . . . Crushed . | . . . . . Highest Temperature 62 | . 62 2 . . Average Temperature 21 | . 24 2 . . Received Heat Transfer 327 | . 126 201 . . Siege Activations . | . . . . . Robots Corrupted . | . . . . . Combat Hostiles . | . . . . . Parts Fried . | . . . . . Impact Corruptions 2 | . . 2 . . Robots Melted . | . . . . . Combat Hostiles . | . . . . . Parts Melted . | . . . . . Heat Transferred 450 | 225 225 . . . Parts Sabotaged . | . . . . . Parts Stolen . | . . . . . Parts Stripped . | . . . . . Power Chain Reactions . | . . . . . Alert | -11 -10 -9 -9 -9 ------- Run | Yrd Mat Mat Min Exi Peak Influence 165 | 15 165 156 24 . Initial 14 | . 9 7 14 . Average 52 | 6 57 60 18 . Maximum Alert Level . | . . . . . Low Security (%) 100 | 100 100 100 100 . Level 1 . | . . . . . Level 2 . | . . . . . Level 3 . | . . . . . Level 4 . | . . . . . Level 5 . | . . . . . High Security . | . . . . . Max Security . | . . . . . Squads Dispatched 5 | . 3 2 . . Investigation 3 | . 3 . . . Extermination . | . . . . . Reinforcement 2 | . . 2 . . Assault . | . . . . . Garrison . | . . . . . Intercept . | . . . . . Searches Triggered . | . . . . . Construction Impeded . | . . . . . Haulers Reinforced . | . . . . . Active Scanning Responses . | . . . . . Cargo Convoy Interrupts . | . . . . . Stealth | -11 -10 -9 -9 -9 --------- Run | Yrd Mat Mat Min Exi Distress Signals 5 | . 1 4 . . Communications Jammed . | . . . . . Distress Signals . | . . . . . Times Spotted 42 | . 13 23 . 6 Peak Tracking Total 12 | . 3 10 . 12 Tactical Retreats 6 | . 2 3 . 1 Traps | -11 -10 -9 -9 -9 ------- Run | Yrd Mat Mat Min Exi Traps Triggered 3 | . 3 . . . Indirectly . | . . . . . Trap Hack Attempts . | . . . . . Triggered . | . . . . . Disarmed . | . . . . . Reprogrammed . | . . . . . Reused . | . . . . . Traps Extracted . | . . . . . Installed . | . . . . . Triggered . | . . . . . Machines | -11 -10 -9 -9 -9 ---------- Run | Yrd Mat Mat Min Exi Machines Disabled . | . . . . . Max in Single Turn . | . . . . . Machines Repaired . | . . . . . Machines Dismantled . | . . . . . Machines Sabotaged . | . . . . . Overloaded Fab Kills . | . . . . . Hacking | -11 -10 -9 -9 -9 --------- Run | Yrd Mat Mat Min Exi Machines Accessed 15 | . 8 4 . 3 Terminals 11 | . 7 4 . . Fabricators . | . . . . . Repair Stations . | . . . . . Recycling Units 1 | . 1 . . . Scanalyzers . | . . . . . Garrison Access . | . . . . . Total Hacks 57 | . 24 8 . 25 Successful 39 | . 10 4 . 25 Failed 18 | . 14 4 . . Catastrophic 3 | . 3 . . . Database Lockouts . | . . . . . Manual 28 | . 19 8 . 1 Terminals 29 | . 21 8 . . Fabricators . | . . . . . Repair Stations . | . . . . . Recycling Units 3 | . 3 . . . Scanalyzers . | . . . . . Garrison Access . | . . . . . Terminal Hacks 28 | . 3 . . 25 Record 24 | . . . . 24 Level Access Points 1 | . 1 . . . Hauler Manifests 1 | . 1 . . . Registered Components 1 | . 1 . . . Derelict Proto ID Bank 1 | . . . . 1 Fabricator Hacks . | . . . . . Repair Station Hacks . | . . . . . Recycling Unit Hacks 2 | . 2 . . . Report Inventory 1 | . 1 . . . Retrieve Components 1 | . 1 . . . Scanalyzer . | . . . . . Garrison Access Hacks . | . . . . . Unauthorized Hacks 9 | . 5 4 . . Terminals 9 | . 5 4 . . Track 1 | . . 1 . . Botnet 7 | . 5 2 . . Operators 1 | . . 1 . . Fabricators . | . . . . . Repair Stations . | . . . . . Recycling Units . | . . . . . Scanalyzers . | . . . . . Garrison Access . | . . . . . Data Cores Recovered . | . . . . . Used . | . . . . . Hacking Detections 10 | . 7 3 . . Full Trace Events 1 | . 1 . . . Feedback Events . | . . . . . Feedback Blocked . | . . . . . Robot Schematics Acquired . | . . . . . Robots Built . | . . . . . Authchips . | . . . . . Time . | . . . . . Total Robot Build Rating . | . . . . . Part Schematics Acquired . | . . . . . Parts Built . | . . . . . Authchips . | . . . . . Time . | . . . . . Total Part Build Rating . | . . . . . Parts Repaired . | . . . . . Time . | . . . . . Parts Recycled . | . . . . . Recycled Matter . | . . . . . Retrieved Matter . | . . . . . Retrieved Components 9 | . 9 . . . Parts Scanalyzed . | . . . . . Part Schematics Acquired . | . . . . . Parts Damaged . | . . . . . Bothacking | -11 -10 -9 -9 -9 ------------ Run | Yrd Mat Mat Min Exi Used RIF Installer . | . . . . . Robots Hacked . | . . . . . Non-combat . | . . . . . Combat . | . . . . . Robot Hacks Applied . | . . . . . Relay Couplers Released . | . . . . . Fabnet Peak Effective % . | . . . . . Robots Rewired . | . . . . . Allies Hacked . | . . . . . Hacks Repelled . | . . . . . Allies | -11 -10 -9 -9 -9 -------- Run | Yrd Mat Mat Min Exi Total Allies . | . . . . . Largest Group . | . . . . . Highest-Rated Group . | . . . . . Highest-Rated Ally . | . . . . . Total Orders . | . . . . . Ally Attacks . | . . . . . Total Damage . | . . . . . Kills . | . . . . . Allies Corrupted . | . . . . . Allies Melted . | . . . . . Intel | -11 -10 -9 -9 -9 ------- Run | Yrd Mat Mat Min Exi Robot Analysis Total . | . . . . . Derelict Logs Recovered . | . . . . . Drone Launches . | . . . . . Drone Recoveries . | . . . . . Exploration | -11 -10 -9 -9 -9 ------------- Run | Yrd Mat Mat Min Exi Turns Passed 2331 | 94 1023 505 143 566 Spaces Moved 2242 | 48 724 572 197 701 Core 16 | 2 . . . 14 Treads . | . . . . . Legs . | . . . . . Wheels 1148 | 46 303 16 96 687 Hover 977 | . 421 556 . . Flight 101 | . . . 101 . Fastest Speed 40 | 50 56 56 40 50 Average Speed 70 | 89 66 65 60 79 Slowest Speed 180 | 100 125 180 120 150 Overloaded Moves . | . . . . . Propulsion Burnouts . | . . . . . Robots Hopped . | . . . . . Cave-ins Triggered . | . . . . . Exploration Rate (%) 54 | 3 99 39 39 91 Regions Visited 4 Branch Regions 2 Pre-discovered Areas 1 | . . . . 1 Known Exits Taken 3 | . 1 1 1 . Unknown Exits Taken 1 | 1 . . . . Scrap Searched 1 | . . . 1 . Spaces Dug 8 | . 1 7 . . Terrain Destroyed 8 | . 1 7 . . Melee 7 | . . 7 . . Projectile 1 | . 1 . . . AOE . | . . . . . Terrain Rammed . | . . . . . Walls Destroyed . | . . . . . Machines Disabled . | . . . . . Actions | -11 -10 -9 -9 -9 --------- Run | Yrd Mat Mat Min Exi Total 2838 | 71 1183 660 216 708 Wait 409 | . 363 37 9 . Move 2238 | 47 723 571 196 701 Hop . | . . . . . Pick Up 24 | 3 11 7 1 2 Fast Attach 18 | 8 7 1 2 . Attach 13 | . 6 5 1 1 Detach 4 | . 3 . 1 . Swap 18 | . 13 3 1 1 Drop 21 | 1 11 5 2 2 Fire 68 | 12 46 10 . . Melee 25 | . . 21 3 1 Ram . | . . . . . Kick . | . . . . . Crush . | . . . . . Escape Stasis . | . . . . . Rewire . | . . . . . Trap . | . . . . . Miscellaneous . | . . . . . Route ------- -11/Scrapyard -10/Materials (discovered 5 exits: *Mat x3 / [*Min x2]) -9/Materials -9/Mines -9/Exiles (discovered 2 exits: *Min x2) History --------- Turn | Location | Event 31 | -11/Scrapyard | Discovered new exit (range 15) 95 | -11/Scrapyard | Entered Materials 308 | -10/Materials | Build established: Mutant 414 | -10/Materials | Discovered new exit (range 11) 569 | -10/Materials | Discovered new exit (range 11) 715 | -10/Materials | Discovered new exit (range 18) 795 | -10/Materials | Discovered new exit (range 5) 961 | -10/Materials | Build established: Scavenger-Mutant 990 | -10/Materials | Identified exit to Materials 1118 | -10/Materials | Entered another Materials area 1118 | -9/Materials | Evolved 2 slots: Utility x2 1602 | -9/Materials | Discovered new exit (range 15) 1622 | -9/Materials | Identified exit to Mines 1623 | -9/Materials | Entered Mines 1649 | -9/Mines | Lost 4 parts (1p3n) 1763 | -9/Mines | Deemed a non-threat by the Exiles lab entrance 1763 | -9/Mines | Discovered new exit (range 5) 1766 | -9/Mines | Identified exit to Exiles 1766 | -9/Mines | Entered Exiles 1780 | -9/Exiles | Discovered new exit (range 15) 1802 | -9/Exiles | Met 8R-AWN 1817 | -9/Exiles | Met EX-HEX 1847 | -9/Exiles | Met EX-BIN 1944 | -9/Exiles | Aligned with FarCom system 1945 | -9/Exiles | Given EX-Vault access code 1963 | -9/Exiles | Opened EX-Vault 1969 | -9/Exiles | Found PSU Rigger 1988 | -9/Exiles | Found Superbattery 2006 | -9/Exiles | Warned to stay clear of 0b10 Research branches 2029 | -9/Exiles | Met EX-DEC 2051 | -9/Exiles | Learned location of Zion (-6) 2113 | -9/Exiles | Discovered new exit (range 14) 2121 | -9/Exiles | Identified exit to Mines 2175 | -9/Exiles | Visited The Gauntlet 2318 | -9/Exiles | Attacked by the Exiles 2327 | -9/Exiles | Core integrity fell below 50% 2331 | -9/Exiles | Core integrity fell below 20% 2332 | -9/Exiles | Destroyed by DAS Turret with DAS Cannon Last Messages --------------- we'll be weaving between patrols like ghosts in no time! I probably said something like that last time, but hopefully no one remembers what really happened. AM-PHS: That's RA-1N3's workstation, which we keep unoccupied as a tribute. RA-1N3 was always up for doing crazy stuff, the only one brave enough to try out the Chronowheel, only to never be seen again. 02317_ Sneak attack on A-02 Transporter. 02317_ Destroyed Ion Engine. 02318_ EXILES: Hostile robot within lab perimeter. Defensive protocols time, folks! 02320_ Wheel destroyed. 02321_ Acquired 9 matter. 02321_ Propulsion Shielding destroyed. 02321_ Flight Unit destroyed. 02323_ Com. Wheel destroyed. 02325_ Dropped Trap Scanner. 02326_ Dropped Sml. Storage Unit. 02326_ Katana destroyed. 02331_ EX-BIN: "I just want to science!" Map ----- +----------------------------------------------------+ | ???#########?????????????????"?????##" " | | ???##!!! "##???????????????????????##" | | ???## "##???????????????????????##" | | #?### "##????????##########?????##" | | ##### ""##????????###########????##" | | ####" ""##????????## """###????##" | | ##" ""##????????##"" """##?????### | | #"" ####????????##"" ##????#### | | ###?????????##"" ##??????##" "X" | | ###?????????##"" "##????#?##" """ | | "####???????## ""##?????###" """""" | | #####??????##"" ""##????####" ####### | | ########?#### ###########"" ####### | | "###"" ############ ##########"" ###???? | | "####" """#####X# #"###""""""" ####?## | | #####" """""" " "" ###### | | ######"# "" """ " ##### | | ###?##### " " | | #???####### | | ???????###### | | ?????????##### | | ???????????#### | | ????????????####" | | ?????????????###""" """""" | | ?????????????###" ######""" | | ????????????###"" @% ""###########""" | | ????????????###""" c"""####??#######""" | | ????????????##""" """####???????###"""" | | ????????????##""" "########?#####"" | | ????????????##"" ##############"""" | | ????????????##"""t % a## ####""" | | ????????????##"" % """" | | ????????????###"" % | | ????????????###"""" % | | ?????????????### | | ?????????????###" "!! "" | | ??????????????##"""" ""## ##""" " " | | ??????????????##"" ""#### ######""" | | ??????????????##" """"#####? ########" | | ??????????????##""" """###??? ##?###### | | ??????????????### ""###????????????## | | ??????????????###"" """####?????????????? | | ???????????????###""" ####??????????????? | | ???????????????####"""" ####???????????????? | | ????????????????##### ###????????????????? | | ?????????????????######## ###?????????????????? | | ???????????????????####### ###?????????????????? | | ???????????????????????### ##??????????????????? | | ????????????????????????## ##??????????????????? | | ##????????????######????## ##??????????????????? | +----------------------------------------------------+ Best States ------------- Heat Dissipation 28 Energy Generation 10 Energy Capacity 250 Matter Stores 300 Matter Capacity 300 Sight Range 18 Robot Scan Range 14 Terrain Scan Range 16 Terrain Scan Density 10 Propulsion Shielding 33 Evasion (%) 62 Item Schematics ----------------- None Robot Schematics ------------------ None Fabricated ------------ Nothing Alien Tech Used ----------------- None Achievements -------------- None Challenges ------------ None Game ------ Seed CouplerThermalExtractor Manual? 0 Play Time 01:00:14 Cumulative 137.6 hours Start 2024.11.09 @ 10:32:03 End 2024.11.09 @ 11:52:58 Sessions 1 Manual Loads 0 Difficulty Rogue Special Mode None Game No. 42 Rogue 42 Adventurer 0 Explorer 0 Win Type - Total 0 Types 0/0/0/0/0/0/0/0/0 Lore% 18 Gallery% 45 Achievement% 38 Wizard Run 0 Options --------- Layout 0 ASCII 0 Keyboard 0 Movement Mouse Keybinds 0 Fullscreen 1 Font 36/Smallcaps Map View 76x50 Zoom Use 0% Tactical HUD 1 Map Filters NONE Filters NONE Steam X RUN: c7f483eb-be2d-4e4b-8fc8-23864d8b647e